[Event "Late-Titled-Tuesday-Blitz-February-13-2024"]
[Site "Chess.com"]
[Date "2024.02.13"]
[Round "1"]
[White "HaryKane"]
[Black "HanSchut"]
[Result "1-0"]
[WhiteElo "2597"]
[BlackElo "2254"]
[TimeControl "180+1"]
[EndTime "14:04:36 PST"]
[Termination "HaryKane won by resignation"]

1. d4 {[%clk 0:03:00.1]} 1... Nf6 {[%clk 0:02:59.9]} 2. e3 {[%clk 0:03:00.6]}
2... g6 {[%clk 0:03:00.3]} 3. f4 {[%clk 0:03:01.2]} 3... Bg7 {[%clk 0:03:00.5]}
4. Nf3 {[%clk 0:03:01.9]} 4... O-O {[%clk 0:03:00.9]} 5. Bd3 {[%clk 0:03:01.9]}
5... d6 {[%clk 0:03:00.4]} 6. e4 {[%clk 0:03:01]} 6... e5 {[%clk 0:02:56.5]} 7.
fxe5 {[%clk 0:02:58.7]} 7... dxe5 {[%clk 0:02:57]} 8. d5 {[%clk 0:02:59.1]} 8...
c6 {[%clk 0:02:54.4]} 9. c4 {[%clk 0:02:59.3]} 9... cxd5 {[%clk 0:02:49]} 10.
cxd5 {[%clk 0:03:00.2]} 10... Qb6 {[%clk 0:02:48.6]} 11. Qe2 {[%clk 0:02:54.2]}
11... Nbd7 {[%clk 0:02:42.2]} 12. Be3 {[%clk 0:02:51.8]} 12... Qb4+ {[%clk
0:02:40.1]} 13. Nc3 {[%clk 0:02:47.2]} 13... Nc5 {[%clk 0:02:37]} 14. O-O-O
{[%clk 0:02:36.5]} 14... Bg4 {[%clk 0:02:21.1]} 15. Bc2 {[%clk 0:02:28.1]} 15...
Rac8 {[%clk 0:02:15.2]} 16. a3 {[%clk 0:02:25]} 16... Nb3+ {[%clk 0:02:11.5]}
17. Kb1 {[%clk 0:02:15.9]} 17... Qa5 {[%clk 0:02:00.9]} 18. Bxb3 {[%clk
0:02:13.2]} 18... Rxc3 {[%clk 0:02:01]} 19. Bd2 {[%clk 0:01:47.2]} 19... Rfc8
{[%clk 0:01:45.9]} 20. Bxc3 {[%clk 0:01:42]} 20... Rxc3 {[%clk 0:01:45.5]} 21.
bxc3 {[%clk 0:01:41.6]} 21... Nd7 {[%clk 0:01:33.6]} 22. Kb2 {[%clk 0:01:33.7]}
22... Bf8 {[%clk 0:01:32.1]} 23. a4 {[%clk 0:01:30.4]} 23... Nc5 {[%clk
0:01:30.9]} 24. Qb5 {[%clk 0:01:23.3]} 24... Qd8 {[%clk 0:01:25]} 25. d6 {[%clk
0:01:13.3]} 25... a6 {[%clk 0:01:22.2]} 26. Qxc5 {[%clk 0:01:11.4]} 1-0

[Event "Late-Titled-Tuesday-Blitz-February-13-2024"]
[Site "Chess.com"]
[Date "2024.02.13"]
[Round "1"]
[White "Sl4werThanYou"]
[Black "Kostukov_Alex"]
[Result "1-0"]
[WhiteElo "2627"]
[BlackElo "2271"]
[TimeControl "180+1"]
[EndTime "14:04:54 PST"]
[Termination "Sl4werThanYou won by resignation"]

1. d4 {[%clk 0:02:56.7]} 1... g6 {[%clk 0:02:59.3]} 2. Nf3 {[%clk 0:02:53]} 2...
Bg7 {[%clk 0:02:59.4]} 3. e4 {[%clk 0:02:49.5]} 3... c5 {[%clk 0:02:58.7]} 4. d5
{[%clk 0:02:34.8]} 4... d6 {[%clk 0:02:56.6]} 5. Nc3 {[%clk 0:02:35.1]} 5... Nf6
{[%clk 0:02:56.1]} 6. Bb5+ {[%clk 0:02:33.1]} 6... Nbd7 {[%clk 0:02:48.7]} 7. a4
{[%clk 0:02:34]} 7... Kf8 {[%clk 0:02:48]} 8. O-O {[%clk 0:02:33]} 8... Ne5
{[%clk 0:02:40.1]} 9. Nxe5 {[%clk 0:02:29.4]} 9... dxe5 {[%clk 0:02:39.6]} 10.
Be3 {[%clk 0:02:30.1]} 10... b6 {[%clk 0:02:24.2]} 11. a5 {[%clk 0:02:24.8]}
11... Rb8 {[%clk 0:02:00.6]} 12. axb6 {[%clk 0:02:18.6]} 12... axb6 {[%clk
0:01:59.5]} 13. Ra7 {[%clk 0:02:18.2]} 13... Ne8 {[%clk 0:01:57.4]} 14. Bc6
{[%clk 0:02:11.3]} 14... Nd6 {[%clk 0:01:54.9]} 15. Qe2 {[%clk 0:02:09]} 15...
f6 {[%clk 0:01:34.7]} 16. f4 {[%clk 0:02:04.9]} 16... exf4 {[%clk 0:01:18.3]}
17. Bxf4 {[%clk 0:02:05.8]} 17... h5 {[%clk 0:01:01.2]} 18. e5 {[%clk
0:02:05.3]} 18... Bg4 {[%clk 0:00:43.4]} 19. Qe1 {[%clk 0:02:05.7]} 19... Nc8
{[%clk 0:00:31.8]} 20. exf6 {[%clk 0:02:00]} 20... Nxa7 {[%clk 0:00:27]} 21.
fxe7+ {[%clk 0:01:48.4]} 21... Qxe7 {[%clk 0:00:21.5]} 22. Bd6+ {[%clk
0:01:46.5]} 1-0

[Event "Late-Titled-Tuesday-Blitz-February-13-2024"]
[Site "Chess.com"]
[Date "2024.02.13"]
[Round "1"]
[White "waltereador"]
[Black "Doomfist26"]
[Result "0-1"]
[WhiteElo "2257"]
[BlackElo "2605"]
[TimeControl "180+1"]
[EndTime "14:04:56 PST"]
[Termination "Doomfist26 won by resignation"]

1. e4 {[%clk 0:03:00.6]} 1... e6 {[%clk 0:02:59.4]} 2. d4 {[%clk 0:03:00.3]}
2... d5 {[%clk 0:03:00.1]} 3. e5 {[%clk 0:02:57.2]} 3... c5 {[%clk 0:03:00]} 4.
c3 {[%clk 0:02:55.2]} 4... Nc6 {[%clk 0:03:00.7]} 5. Bd3 {[%clk 0:02:51.6]} 5...
cxd4 {[%clk 0:02:58.2]} 6. cxd4 {[%clk 0:02:51.5]} 6... Nxd4 {[%clk 0:02:52.6]}
7. Be3 {[%clk 0:02:47.9]} 7... Nc6 {[%clk 0:02:51.8]} 8. Nf3 {[%clk 0:02:47.7]}
8... Nge7 {[%clk 0:02:50.2]} 9. O-O {[%clk 0:02:47.7]} 9... Ng6 {[%clk
0:02:50.3]} 10. Re1 {[%clk 0:02:46.5]} 10... Ngxe5 {[%clk 0:02:50]} 11. Nxe5
{[%clk 0:02:46.1]} 11... Nxe5 {[%clk 0:02:50.6]} 12. Bb5+ {[%clk 0:02:45.3]}
12... Nc6 {[%clk 0:02:50.5]} 13. Nd2 {[%clk 0:02:44.1]} 13... Be7 {[%clk
0:02:49.3]} 14. Nf3 {[%clk 0:02:43.8]} 14... O-O {[%clk 0:02:48.8]} 15. Bxc6
{[%clk 0:02:43.3]} 15... bxc6 {[%clk 0:02:48.6]} 16. Ne5 {[%clk 0:02:44.2]}
16... Bd6 {[%clk 0:02:43.4]} 17. Qh5 {[%clk 0:02:35.9]} 17... c5 {[%clk
0:02:33.3]} 18. Bg5 {[%clk 0:02:30.5]} 18... f6 {[%clk 0:02:22.2]} 19. Bh4
{[%clk 0:02:28.8]} 19... Qe8 {[%clk 0:02:22.2]} 20. Qxe8 {[%clk 0:02:27.9]}
20... Rxe8 {[%clk 0:02:22.4]} 21. Nd3 {[%clk 0:02:27.3]} 21... c4 {[%clk
0:02:18.7]} 22. Nc1 {[%clk 0:02:24.6]} 22... Rb8 {[%clk 0:02:18.6]} 23. b3
{[%clk 0:02:24.1]} 23... Be5 {[%clk 0:02:11.6]} 24. Bg3 {[%clk 0:02:23.3]} 24...
Bxg3 {[%clk 0:02:07.1]} 25. hxg3 {[%clk 0:02:23.2]} 25... Ba6 {[%clk 0:02:06.6]}
26. bxc4 {[%clk 0:02:23]} 26... Bxc4 {[%clk 0:02:07.5]} 27. a4 {[%clk
0:02:20.1]} 27... e5 {[%clk 0:02:04.4]} 28. g4 {[%clk 0:02:19.4]} 28... Kf7
{[%clk 0:02:01.9]} 29. f3 {[%clk 0:02:19.1]} 29... Rb2 {[%clk 0:02:01.8]} 30.
Rd1 {[%clk 0:02:05]} 30... Reb8 {[%clk 0:02:01.1]} 31. Nd3 {[%clk 0:01:48.3]}
31... Rc2 {[%clk 0:01:58.2]} 32. Ne1 {[%clk 0:01:45.9]} 32... Re2 {[%clk
0:01:57.3]} 33. Rdb1 {[%clk 0:01:44.4]} 33... Rbb2 {[%clk 0:01:53.3]} 34. Rxb2
{[%clk 0:01:44.4]} 34... Rxb2 {[%clk 0:01:54]} 35. a5 {[%clk 0:01:44.5]} 35...
a6 {[%clk 0:01:52.9]} 36. g3 {[%clk 0:01:43.4]} 36... d4 {[%clk 0:01:52.7]} 37.
Ng2 {[%clk 0:01:43.4]} 37... Bd5 {[%clk 0:01:49.8]} 38. Ne1 {[%clk 0:01:31.9]}
38... Ke6 {[%clk 0:01:47.9]} 39. Ra3 {[%clk 0:01:28.8]} 39... Rb3 {[%clk
0:01:46.9]} 40. Rxb3 {[%clk 0:01:28.3]} 40... Bxb3 {[%clk 0:01:46.9]} 41. Nd3
{[%clk 0:01:29]} 41... Kd5 {[%clk 0:01:47]} 42. Nb4+ {[%clk 0:01:28.5]} 42...
Kc4 {[%clk 0:01:47.7]} 43. Nxa6 {[%clk 0:01:29.1]} 43... d3 {[%clk 0:01:48.4]}
44. Kf2 {[%clk 0:01:28.5]} 44... d2 {[%clk 0:01:48.8]} 45. Nb8 {[%clk
0:01:26.5]} 45... d1=Q {[%clk 0:01:49.7]} 46. Nc6 {[%clk 0:01:25.6]} 46... Qd2+
{[%clk 0:01:48.9]} 0-1

[Event "Late-Titled-Tuesday-Blitz-February-13-2024"]
[Site "Chess.com"]
[Date "2024.02.13"]
[Round "1"]
[White "Jospem"]
[Black "DeArron_Fox"]
[Result "1-0"]
[WhiteElo "3031"]
[BlackElo "2511"]
[TimeControl "180+1"]
[EndTime "14:05:03 PST"]
[Termination "Jospem won on time"]

1. e4 {[%clk 0:03:00.9]} 1... c5 {[%clk 0:02:50.6]} 2. Nf3 {[%clk 0:03:00.9]}
2... e6 {[%clk 0:02:51]} 3. c3 {[%clk 0:03:01.3]} 3... d5 {[%clk 0:02:48.5]} 4.
e5 {[%clk 0:03:01.8]} 4... d4 {[%clk 0:02:47.4]} 5. d3 {[%clk 0:03:01.6]} 5...
Bd7 {[%clk 0:02:45.8]} 6. g3 {[%clk 0:03:01.9]} 6... Bc6 {[%clk 0:02:45.8]} 7.
Bg2 {[%clk 0:03:02.4]} 7... Nd7 {[%clk 0:02:43.7]} 8. O-O {[%clk 0:03:02.7]}
8... Ne7 {[%clk 0:02:42.7]} 9. Qe2 {[%clk 0:03:02.6]} 9... Ng6 {[%clk
0:02:42.3]} 10. Nbd2 {[%clk 0:03:02.6]} 10... Qc7 {[%clk 0:02:40.7]} 11. Re1
{[%clk 0:03:02.8]} 11... Rd8 {[%clk 0:01:53.4]} 12. h4 {[%clk 0:03:00.5]} 12...
h6 {[%clk 0:01:38.3]} 13. cxd4 {[%clk 0:02:47.4]} 13... cxd4 {[%clk 0:01:35.5]}
14. a3 {[%clk 0:02:47.7]} 14... Ne7 {[%clk 0:01:08.4]} 15. Nc4 {[%clk
0:02:35.6]} 15... Nc8 {[%clk 0:00:51.2]} 16. Bf4 {[%clk 0:02:34.6]} 16... Bc5
{[%clk 0:00:32.3]} 17. Rac1 {[%clk 0:02:34.2]} 17... O-O {[%clk 0:00:24.5]} 18.
b4 {[%clk 0:02:34.3]} 18... Bb6 {[%clk 0:00:24.8]} 19. g4 {[%clk 0:02:26.8]}
19... Ne7 {[%clk 0:00:15.6]} 20. Bg3 {[%clk 0:02:27.2]} 20... Nd5 {[%clk
0:00:11.7]} 21. h5 {[%clk 0:02:15.5]} 21... Nc3 {[%clk 0:00:11.4]} 22. Qd2
{[%clk 0:02:15.9]} 22... Bd5 {[%clk 0:00:05.4]} 23. Nd6 {[%clk 0:02:15.1]} 23...
Qb8 {[%clk 0:00:03.5]} 24. g5 {[%clk 0:02:15.6]} 24... hxg5 {[%clk 0:00:02.1]}
25. Qxg5 {[%clk 0:02:16.5]} 25... Bc7 {[%clk 0:00:01.9]} 26. h6 {[%clk
0:02:16.4]} 26... g6 {[%clk 0:00:02.5]} 27. Nc4 {[%clk 0:02:09.1]} 27... Bxc4
{[%clk 0:00:02.2]} 28. dxc4 {[%clk 0:02:10]} 1-0

[Event "Late-Titled-Tuesday-Blitz-February-13-2024"]
[Site "Chess.com"]
[Date "2024.02.13"]
[Round "1"]
[White "rezamahdavi2008"]
[Black "Mindhunter08"]
[Result "1-0"]
[WhiteElo "2846"]
[BlackElo "2445"]
[TimeControl "180+1"]
[EndTime "14:05:11 PST"]
[Termination "rezamahdavi2008 won by resignation"]

1. e4 {[%clk 0:03:00.9]} 1... e5 {[%clk 0:03:00]} 2. Nf3 {[%clk 0:03:00.7]} 2...
Nc6 {[%clk 0:03:00.2]} 3. Bc4 {[%clk 0:02:59.7]} 3... Nf6 {[%clk 0:02:59.6]} 4.
d3 {[%clk 0:02:56.7]} 4... Bc5 {[%clk 0:02:58.8]} 5. Bg5 {[%clk 0:02:54]} 5...
h6 {[%clk 0:02:57.2]} 6. Bh4 {[%clk 0:02:53.5]} 6... g5 {[%clk 0:02:57.9]} 7.
Bg3 {[%clk 0:02:53]} 7... d6 {[%clk 0:02:57.9]} 8. c3 {[%clk 0:02:43.2]} 8...
Bg4 {[%clk 0:02:46.8]} 9. Nbd2 {[%clk 0:02:39]} 9... Qd7 {[%clk 0:02:32.6]} 10.
a4 {[%clk 0:02:31.3]} 10... a5 {[%clk 0:02:23.7]} 11. h3 {[%clk 0:02:30.9]}
11... Bh5 {[%clk 0:02:21.5]} 12. Bb5 {[%clk 0:02:26.3]} 12... Bb6 {[%clk
0:01:51.7]} 13. Nc4 {[%clk 0:02:26]} 13... O-O {[%clk 0:01:30.1]} 14. Nxb6
{[%clk 0:02:23.8]} 14... cxb6 {[%clk 0:01:30.4]} 15. Bh2 {[%clk 0:02:24.3]}
15... g4 {[%clk 0:01:14.2]} 16. hxg4 {[%clk 0:02:24.2]} 16... Qxg4 {[%clk
0:01:15.1]} 17. Qd2 {[%clk 0:02:23.4]} 17... Kh7 {[%clk 0:00:57.1]} 18. Bg3
{[%clk 0:02:17.4]} 18... Rae8 {[%clk 0:00:47.7]} 19. O-O-O {[%clk 0:02:05.1]}
19... Qg6 {[%clk 0:00:37.3]} 20. Nh4 {[%clk 0:01:56.5]} 20... Qg5 {[%clk
0:00:32.4]} 21. Nf5 {[%clk 0:01:51.7]} 21... Qxd2+ {[%clk 0:00:23.6]} 22. Rxd2
{[%clk 0:01:52.6]} 22... Rd8 {[%clk 0:00:17.5]} 23. Bh4 {[%clk 0:01:52.8]} 23...
Kg6 {[%clk 0:00:06.2]} 24. Bxf6 {[%clk 0:01:52.8]} 1-0

[Event "Late-Titled-Tuesday-Blitz-February-13-2024"]
[Site "Chess.com"]
[Date "2024.02.13"]
[Round "1"]
[White "Rawnsdale"]
[Black "cthake"]
[Result "1-0"]
[WhiteElo "2531"]
[BlackElo "1806"]
[TimeControl "180+1"]
[EndTime "14:05:13 PST"]
[Termination "Rawnsdale won by resignation"]

1. e4 {[%clk 0:02:53.9]} 1... c5 {[%clk 0:02:58.6]} 2. Nf3 {[%clk 0:02:53.9]}
2... Nc6 {[%clk 0:02:58.9]} 3. d4 {[%clk 0:02:53.6]} 3... cxd4 {[%clk
0:02:59.6]} 4. Nxd4 {[%clk 0:02:54.5]} 4... Nf6 {[%clk 0:02:59.5]} 5. Nc3 {[%clk
0:02:54.8]} 5... e5 {[%clk 0:02:59.8]} 6. Ndb5 {[%clk 0:02:54.8]} 6... d6 {[%clk
0:03:00.1]} 7. Nd5 {[%clk 0:02:55.2]} 7... Nxd5 {[%clk 0:02:59.7]} 8. exd5
{[%clk 0:02:56.1]} 8... Nb8 {[%clk 0:03:00]} 9. c4 {[%clk 0:02:56.8]} 9... a6
{[%clk 0:02:59.8]} 10. Nc3 {[%clk 0:02:56.6]} 10... Be7 {[%clk 0:02:58.7]} 11.
Be2 {[%clk 0:02:56.5]} 11... O-O {[%clk 0:02:57.9]} 12. O-O {[%clk 0:02:56.4]}
12... f5 {[%clk 0:02:57.8]} 13. f4 {[%clk 0:02:56.3]} 13... Bf6 {[%clk
0:02:53.4]} 14. Be3 {[%clk 0:02:53]} 14... Nd7 {[%clk 0:02:48.9]} 15. Rc1 {[%clk
0:02:51.5]} 15... e4 {[%clk 0:02:41.7]} 16. b4 {[%clk 0:02:41.1]} 16... b6
{[%clk 0:02:40.1]} 17. Na4 {[%clk 0:02:36.4]} 17... Bb7 {[%clk 0:02:35.9]} 18.
c5 {[%clk 0:02:22.6]} 18... bxc5 {[%clk 0:02:34.4]} 19. bxc5 {[%clk 0:02:22.6]}
19... dxc5 {[%clk 0:02:30.1]} 20. Nxc5 {[%clk 0:02:22.5]} 20... Nxc5 {[%clk
0:02:19.8]} 21. Bxc5 {[%clk 0:02:21.4]} 21... Re8 {[%clk 0:02:12.1]} 22. d6
{[%clk 0:02:20.2]} 22... Qd7 {[%clk 0:02:02.2]} 23. Ba3 {[%clk 0:01:38.7]} 23...
Rac8 {[%clk 0:02:00.3]} 24. Qb3+ {[%clk 0:01:36.1]} 24... Kh8 {[%clk 0:01:55.2]}
25. Bc4 {[%clk 0:01:28.2]} 25... Bd4+ {[%clk 0:01:49.3]} 26. Kh1 {[%clk
0:01:27.5]} 26... e3 {[%clk 0:01:46.2]} 27. Bf7 {[%clk 0:01:11]} 27... Rf8
{[%clk 0:01:39]} 28. Be6 {[%clk 0:01:10.4]} 28... Rxc1 {[%clk 0:01:35.1]} 29.
Rxc1 {[%clk 0:01:08.6]} 29... Qb5 {[%clk 0:01:24.2]} 30. Qxb5 {[%clk 0:01:05.8]}
30... axb5 {[%clk 0:01:24.4]} 31. d7 {[%clk 0:01:05.4]} 31... e2 {[%clk
0:01:23]} 32. Bxf8 {[%clk 0:01:04.2]} 32... Bb6 {[%clk 0:01:15.1]} 33. Re1
{[%clk 0:00:59.8]} 1-0

[Event "Late-Titled-Tuesday-Blitz-February-13-2024"]
[Site "Chess.com"]
[Date "2024.02.13"]
[Round "1"]
[White "ahkashefi2800"]
[Black "Hikaru"]
[Result "0-1"]
[WhiteElo "2528"]
[BlackElo "3333"]
[TimeControl "180+1"]
[EndTime "14:05:20 PST"]
[Termination "Hikaru won by resignation"]

1. Nf3 {[%clk 0:02:58.4]} 1... g6 {[%clk 0:03:00.4]} 2. g3 {[%clk 0:02:55.9]}
2... Bg7 {[%clk 0:03:01.3]} 3. Bg2 {[%clk 0:02:56]} 3... d6 {[%clk 0:03:02.2]}
4. O-O {[%clk 0:02:56.5]} 4... Bd7 {[%clk 0:03:03]} 5. d4 {[%clk 0:02:56.5]}
5... Qc8 {[%clk 0:03:03.9]} 6. Re1 {[%clk 0:02:56.2]} 6... Bh3 {[%clk
0:03:03.7]} 7. e4 {[%clk 0:02:56.1]} 7... Nc6 {[%clk 0:03:02.6]} 8. c3 {[%clk
0:02:49.2]} 8... h5 {[%clk 0:03:02.4]} 9. Qb3 {[%clk 0:02:48.3]} 9... Bxg2
{[%clk 0:03:01]} 10. Kxg2 {[%clk 0:02:46.6]} 10... h4 {[%clk 0:03:01.4]} 11.
Nxh4 {[%clk 0:02:40.3]} 11... Bf6 {[%clk 0:03:01.7]} 12. Nf3 {[%clk 0:02:40]}
12... Qh3+ {[%clk 0:03:00.7]} 13. Kg1 {[%clk 0:02:37.7]} 13... O-O-O {[%clk
0:03:01.1]} 14. Nbd2 {[%clk 0:02:28.6]} 14... g5 {[%clk 0:03:00.1]} 15. Nf1
{[%clk 0:02:21.6]} 15... g4 {[%clk 0:03:00.2]} 16. Ng5 {[%clk 0:02:20.2]} 16...
Bxg5 {[%clk 0:03:00.6]} 17. Bxg5 {[%clk 0:02:19.7]} 17... Qh5 {[%clk 0:02:58.1]}
18. Be3 {[%clk 0:02:12]} 18... Nf6 {[%clk 0:02:58]} 19. d5 {[%clk 0:02:10.1]}
19... Ne5 {[%clk 0:02:58.3]} 20. f4 {[%clk 0:00:54.1]} 20... Nf3+ {[%clk
0:02:47.5]} 21. Kf2 {[%clk 0:00:53.7]} 21... Qxh2+ {[%clk 0:01:55.1]} 22. Nxh2
{[%clk 0:00:47.6]} 22... Rxh2+ {[%clk 0:01:54.7]} 23. Kf1 {[%clk 0:00:48]} 23...
Nxe4 {[%clk 0:01:43.4]} 0-1

[Event "Late-Titled-Tuesday-Blitz-February-13-2024"]
[Site "Chess.com"]
[Date "2024.02.13"]
[Round "1"]
[White "Agibileg"]
[Black "Sajkochess"]
[Result "1-0"]
[WhiteElo "2729"]
[BlackElo "2386"]
[TimeControl "180+1"]
[EndTime "14:05:23 PST"]
[Termination "Agibileg won by resignation"]

1. d4 {[%clk 0:03:00.9]} 1... Nf6 {[%clk 0:02:59.3]} 2. c4 {[%clk 0:03:01.1]}
2... e6 {[%clk 0:02:59.7]} 3. Nc3 {[%clk 0:03:01.4]} 3... Bb4 {[%clk 0:03:00.3]}
4. e3 {[%clk 0:03:00.7]} 4... O-O {[%clk 0:02:59.9]} 5. Bd3 {[%clk 0:03:00.6]}
5... d5 {[%clk 0:03:00.1]} 6. a3 {[%clk 0:03:00.9]} 6... Bxc3+ {[%clk
0:02:57.3]} 7. bxc3 {[%clk 0:03:01.8]} 7... c5 {[%clk 0:02:57]} 8. cxd5 {[%clk
0:03:01.6]} 8... Nxd5 {[%clk 0:02:55.2]} 9. Ne2 {[%clk 0:03:00.2]} 9... b6
{[%clk 0:02:52.2]} 10. O-O {[%clk 0:02:59.6]} 10... Ba6 {[%clk 0:02:52.3]} 11.
c4 {[%clk 0:02:58.5]} 11... Nf6 {[%clk 0:02:51.7]} 12. Bb2 {[%clk 0:02:58.8]}
12... Nc6 {[%clk 0:02:48.6]} 13. Rc1 {[%clk 0:02:57.8]} 13... Rc8 {[%clk
0:02:47.8]} 14. Qa4 {[%clk 0:02:45.8]} 14... Na5 {[%clk 0:02:42.6]} 15. Rfd1
{[%clk 0:02:45.6]} 15... Qd7 {[%clk 0:02:17]} 16. Qc2 {[%clk 0:02:44.7]} 16...
cxd4 {[%clk 0:02:09.8]} 17. Bxd4 {[%clk 0:02:40.8]} 17... Qe7 {[%clk 0:02:09.4]}
18. Bxf6 {[%clk 0:02:29.7]} 18... Qxf6 {[%clk 0:02:09.4]} 19. Bxh7+ {[%clk
0:02:30.6]} 19... Kh8 {[%clk 0:02:09.5]} 20. Bd3 {[%clk 0:02:25.6]} 20... Bxc4
{[%clk 0:02:02.2]} 21. Bxc4 {[%clk 0:02:22]} 21... Rxc4 {[%clk 0:02:01.2]} 22.
Qd3 {[%clk 0:02:21.9]} 22... Rfc8 {[%clk 0:01:58.4]} 23. Rxc4 {[%clk 0:02:21.1]}
23... Rxc4 {[%clk 0:01:57.3]} 24. h3 {[%clk 0:02:20.4]} 24... g6 {[%clk
0:01:53.2]} 25. Qd7 {[%clk 0:02:14.4]} 25... Rc2 {[%clk 0:01:43.2]} 26. Nf4
{[%clk 0:02:10.4]} 26... g5 {[%clk 0:01:10.8]} 27. Qe8+ {[%clk 0:02:04.2]} 27...
Kh7 {[%clk 0:00:55]} 28. Rd7 {[%clk 0:02:03.5]} 28... Rc1+ {[%clk 0:00:33]} 29.
Kh2 {[%clk 0:02:03]} 29... gxf4 {[%clk 0:00:28.2]} 30. Rxf7+ {[%clk 0:02:01.5]}
30... Kg6 {[%clk 0:00:28.5]} 31. Qg8+ {[%clk 0:01:53.6]} 31... Kf5 {[%clk
0:00:26.2]} 32. Qg4+ {[%clk 0:01:53.6]} 32... Ke5 {[%clk 0:00:26.3]} 33. exf4+
{[%clk 0:01:53.8]} 1-0

[Event "Late-Titled-Tuesday-Blitz-February-13-2024"]
[Site "Chess.com"]
[Date "2024.02.13"]
[Round "1"]
[White "igorknyazev"]
[Black "pooh2012"]
[Result "0-1"]
[WhiteElo "2195"]
[BlackElo "2562"]
[TimeControl "180+1"]
[EndTime "14:05:26 PST"]
[Termination "pooh2012 won by checkmate"]

1. e4 {[%clk 0:02:48.4]} 1... c6 {[%clk 0:02:59.1]} 2. d4 {[%clk 0:02:47.3]}
2... d5 {[%clk 0:02:59.2]} 3. Nc3 {[%clk 0:02:46.9]} 3... dxe4 {[%clk
0:02:57.6]} 4. Nxe4 {[%clk 0:02:46.5]} 4... Nd7 {[%clk 0:02:58.2]} 5. Nf3 {[%clk
0:02:45.8]} 5... Ngf6 {[%clk 0:02:57.4]} 6. Neg5 {[%clk 0:02:45.5]} 6... e6
{[%clk 0:02:53]} 7. Bf4 {[%clk 0:02:36.8]} 7... h6 {[%clk 0:02:47.5]} 8. Nh3
{[%clk 0:02:31.6]} 8... g5 {[%clk 0:02:46.1]} 9. Nhxg5 {[%clk 0:02:27.1]} 9...
hxg5 {[%clk 0:02:45.1]} 10. Nxg5 {[%clk 0:02:23]} 10... Bh6 {[%clk 0:02:32.7]}
11. Bc4 {[%clk 0:02:06.8]} 11... Qa5+ {[%clk 0:02:14.7]} 12. Bd2 {[%clk
0:02:04.6]} 12... Qf5 {[%clk 0:02:12.9]} 13. f4 {[%clk 0:01:48.1]} 13... Ne4
{[%clk 0:01:08.9]} 14. Bd3 {[%clk 0:01:48.4]} 14... Bxg5 {[%clk 0:01:07.8]} 15.
Qf3 {[%clk 0:01:37.5]} 15... Nxd2 {[%clk 0:01:04.1]} 16. Bxf5 {[%clk 0:01:32.2]}
16... Nxf3+ {[%clk 0:01:02.8]} 17. gxf3 {[%clk 0:01:32.7]} 17... Bh4+ {[%clk
0:01:02.3]} 18. Kd2 {[%clk 0:01:31.6]} 18... exf5 {[%clk 0:01:03.2]} 19. Rhg1
{[%clk 0:01:29.7]} 19... Nf6 {[%clk 0:01:00.6]} 20. Rg2 {[%clk 0:01:29]} 20...
Be6 {[%clk 0:01:00.1]} 21. Rag1 {[%clk 0:01:25.7]} 21... O-O-O {[%clk
0:00:59.8]} 22. b3 {[%clk 0:01:26]} 22... Nd5 {[%clk 0:00:59.4]} 23. c4 {[%clk
0:01:25.7]} 23... Nxf4 {[%clk 0:00:59.1]} 24. Rg7 {[%clk 0:01:26.1]} 24... Rxd4+
{[%clk 0:00:57.5]} 25. Kc3 {[%clk 0:01:26]} 25... Ne2+ {[%clk 0:00:56.3]} 26.
Kb4 {[%clk 0:01:26]} 26... Be7+ {[%clk 0:00:55.2]} 27. Ka4 {[%clk 0:01:25.3]}
27... Nc3+ {[%clk 0:00:42.4]} 28. Ka5 {[%clk 0:01:25]} 28... Kb8 {[%clk
0:00:34.5]} 29. Rg8+ {[%clk 0:01:25.9]} 29... Rxg8 {[%clk 0:00:34.1]} 30. Rxg8+
{[%clk 0:01:25.5]} 30... Bc8 {[%clk 0:00:34.6]} 31. Re8 {[%clk 0:01:25]} 31...
b6# {[%clk 0:00:33.8]} 0-1

[Event "Late-Titled-Tuesday-Blitz-February-13-2024"]
[Site "Chess.com"]
[Date "2024.02.13"]
[Round "1"]
[White "sharkarton"]
[Black "LiemLe"]
[Result "0-1"]
[WhiteElo "2510"]
[BlackElo "3021"]
[TimeControl "180+1"]
[EndTime "14:05:27 PST"]
[Termination "LiemLe won by resignation"]

1. Nf3 {[%clk 0:02:52.2]} 1... Nf6 {[%clk 0:02:58.8]} 2. d4 {[%clk 0:02:52.6]}
2... g6 {[%clk 0:02:57.9]} 3. g3 {[%clk 0:02:52.3]} 3... Bg7 {[%clk 0:02:57.6]}
4. Bg2 {[%clk 0:02:53]} 4... d5 {[%clk 0:02:57.9]} 5. O-O {[%clk 0:02:53.7]}
5... O-O {[%clk 0:02:57.6]} 6. c4 {[%clk 0:02:52.9]} 6... dxc4 {[%clk 0:02:58]}
7. Nc3 {[%clk 0:02:53.1]} 7... c6 {[%clk 0:02:55.6]} 8. Ne5 {[%clk 0:02:49.2]}
8... Ng4 {[%clk 0:02:54.9]} 9. Nxg4 {[%clk 0:02:29.7]} 9... Bxg4 {[%clk
0:02:55.8]} 10. h3 {[%clk 0:02:27.2]} 10... Be6 {[%clk 0:02:53.1]} 11. Be3
{[%clk 0:02:22.2]} 11... Na6 {[%clk 0:02:46.5]} 12. Ne4 {[%clk 0:02:14.7]} 12...
Bd5 {[%clk 0:02:42.8]} 13. f3 {[%clk 0:01:48.4]} 13... Qb6 {[%clk 0:02:40.1]}
14. Qd2 {[%clk 0:01:41.8]} 14... Rad8 {[%clk 0:02:10.9]} 15. Nc3 {[%clk
0:01:31.1]} 15... Rd7 {[%clk 0:02:03.1]} 16. Rfd1 {[%clk 0:01:20.5]} 16... Rfd8
{[%clk 0:02:01.8]} 17. Bf2 {[%clk 0:01:20.8]} 17... Be6 {[%clk 0:02:01.4]} 18.
e3 {[%clk 0:01:08.4]} 18... Nb4 {[%clk 0:02:00.5]} 19. Bf1 {[%clk 0:00:58]}
19... Nd3 {[%clk 0:01:51.7]} 20. Bxd3 {[%clk 0:00:44.5]} 20... cxd3 {[%clk
0:01:52.6]} 21. Qxd3 {[%clk 0:00:45.2]} 21... Qxb2 {[%clk 0:01:48.2]} 22. Ne4
{[%clk 0:00:43.8]} 22... Qb5 {[%clk 0:01:14.3]} 23. Nc5 {[%clk 0:00:27.5]} 23...
Qxc5 {[%clk 0:01:14]} 24. dxc5 {[%clk 0:00:24.2]} 24... Rxd3 {[%clk 0:01:14.9]}
25. Rxd3 {[%clk 0:00:24.5]} 25... Rxd3 {[%clk 0:01:15.1]} 0-1